[Event "African Online-ch Open 2021"]
[Site "Online"]
[Date "2021.02.01"]
[Round "1.21"]
[White "Meftahi, Houssem"]
[Black "Simpson, Michael"]
[Result "1-0"]
[ECO "B48"]
[WhiteElo "2132"]
[BlackElo "1513"]
[Annotator "ChessBase"]
[PlyCount "25"]
[EventDate "2021.02.01"]
[EventType "swiss"]
[EventCountry "NET"]
[SourceTitle "playchess.com"]
[Source "ChessBase"]
[SourceQuality "1"]
[TimeControl "1500+10"]

1. e4 {[%emt 0:00:00]} c5 {[%emt 0:00:04]} 2. Nf3 {[%emt 0:00:03]} e6 {[%emt 0:00:11]} 3. d4 {[%emt 0:00:03]} cxd4 {[%emt 0:00:03]} 4. Nxd4 {[%emt 0:00:02]} Nc6 {[%emt 0:00:02]} 5. Nc3 {[%emt 0:00:03]} Qc7 {[%emt 0:00:06]} 6. Be3 {[%emt 0:00:04]} a6 {[%emt 0:00:04]} 7. Qd2 {[%emt 0:00:04]} Nf6 {[%emt 0:00:12]} 8. O-O-O {[%emt 0:00:06]} Bb4 {[%emt 0:00:16]} 9. f3 {[%emt 0:00:04]} O-O {[%emt 0:01:07]} 10. Qe1 {[%emt 0:01:12]} d5 {[%emt 0:00:57]} 11. Nxc6 {[%emt 0:01:08]} Qxc6 {[%emt 0:00:23]} 12. exd5 {[%emt 0:00:07]} Nxd5 {[%emt 0:00:18]} 13. Nxd5 {[%emt 0:00:04]} 1-0

[Event "African Online-ch Open 2021"]
[Site "Online"]
[Date "2021.02.01"]
[Round "1.22"]
[White "Libe, Sofonea"]
[Black "Beukes, Dante"]
[Result "0-1"]
[ECO "A36"]
[WhiteElo "1509"]
[BlackElo "2129"]
[Annotator "ChessBase"]
[PlyCount "86"]
[EventDate "2021.02.01"]
[EventType "swiss"]
[EventCountry "NET"]
[SourceTitle "playchess.com"]
[Source "ChessBase"]
[SourceQuality "1"]
[TimeControl "1500+10"]

1. c4 {[%emt 0:00:00]} Nf6 {[%emt 0:00:15]} 2. g3 {[%emt 0:00:12]} g6 {[%emt 0:00:35]} 3. Bg2 {[%emt 0:00:45]} Bg7 {[%emt 0:00:04]} 4. Nc3 {[%emt 0:00:07]} O-O {[%emt 0:00:05]} 5. e4 {[%emt 0:00:05]} d6 {[%emt 0:00:03]} 6. Nge2 {[%emt 0:00:02]} c5 {[%emt 0:00:04]} 7. O-O {[%emt 0:00:04]} Nc6 {[%emt 0:00:02]} 8. Rb1 {[%emt 0:00:08]} Ne8 {[%emt 0:00:32]} 9. d3 {[%emt 0:00:15]} Nc7 {[%emt 0:00:48]} 10. Be3 {[%emt 0:01:23]} Ne6 {[%emt 0:00:39]} 11. Qd2 {[%emt 0:00:14]} Ned4 {[%emt 0:00:51]} 12. Bh6 {[%emt 0:01:57]} Bh3 {[%emt 0:05:11]} 13. Nxd4 {[%emt 0:00:25]} Nxd4 {[%emt 0:00:22]} 14. f3 {[%emt 0:00:48]} Bxg2 {[%emt 0:00:49]} 15. Kxg2 {[%emt 0:00:05]} a6 {[%emt 0:01:26]} 16. Bxg7 {[%emt 0:00:05]} Kxg7 {[%emt 0:00:03]} 17. Ne2 {[%emt 0:00:11]} Nc6 {[%emt 0:00:29]} 18. a3 {[%emt 0:00:17]} a5 {[%emt 0:03:22]} 19. f4 {[%emt 0:01:10]} a4 {[%emt 0:00:23]} 20. Rf2 {[%emt 0:00:39]} Qd7 {[%emt 0:02:34]} 21. Rbf1 {[%emt 0:00:05]} Rab8 {[%emt 0:01:06]} 22. Nc3 {[%emt 0:00:27]} Nd4 {[%emt 0:00:16]} 23. Qd1 {[%emt 0:00:56]} Ra8 {[%emt 0:01:23]} 24. Nd5 {[%emt 0:00:32]} Rae8 {[%emt 0:03:18]} 25. Nb6 {[%emt 0:00:47]} Qc6 {[%emt 0:00:05]} 26. Nxa4 {[%emt 0:00:18]} b5 {[%emt 0:01:37]} 27. cxb5 {[%emt 0:01:24]} Qxb5 {[%emt 0:00:07]} 28. Nc3 {[%emt 0:00:04]} Qc6 {[%emt 0:00:01]} 29. b4 {[%emt 0:00:09]} cxb4 {[%emt 0:00:10]} 30. Ne2 {[%emt 0:00:26]} Nc2 {[%emt 0:01:50]} 31. Qc1 {[%emt 0:02:06]} bxa3 {[%emt 0:00:28]} 32. Ng1 {[%emt 0:00:33]} Rc8 {[%emt 0:00:17]} 33. Kh3 {[%emt 0:02:23]} Qa4 {[%emt 0:00:31]} 34. Rd2 {[%emt 0:04:38]} a2 {[%emt 0:00:20]} 35. Qb2+ {[%emt 0:00:05]} Kg8 {[%emt 0:00:02]} 36. Ra1 {[%emt 0:00:40]} Nxa1 {[%emt 0:00:07]} 37. Qxa1 {[%emt 0:00:04]} Rc2 {[%emt 0:00:07]} 38. Nf3 {[%emt 0:00:19]} Rxd2 {[%emt 0:00:07]} 39. Nxd2 {[%emt 0:00:02]} Qc2 {[%emt 0:00:04]} 40. Nc4 {[%emt 0:00:58]} Qb1 {[%emt 0:00:10]} 41. Qxb1 {[%emt 0:00:41]} axb1=Q {[%emt 0:00:05]} 42. e5 {[%emt 0:00:02]} Qxd3 {[%emt 0:00:07]} 43. Nxd6 {[%emt 0:00:05]} exd6 {[%emt 0:00:03]} 0-1

[Event "African Online-ch Open 2021"]
[Site "Online"]
[Date "2021.02.01"]
[Round "2.13"]
[White "Likoko, Elvis"]
[Black "Bongo Akanga Ndjila, Barthelemy"]
[Result "1/2-1/2"]
[ECO "E14"]
[WhiteElo "1646"]
[BlackElo "1803"]
[Annotator "NA RC"]
[PlyCount "147"]
[EventDate "2021.02.01"]
[EventType "swiss"]
[EventCountry "NET"]
[SourceTitle "playchess.com"]
[Source "ChessBase"]
[SourceQuality "1"]
[TimeControl "1500+10"]

1. d4 {[%emt 0:00:00]} Nf6 {[%emt 0:00:32]} 2. c4 {[%emt 0:00:04]} b6 {[%emt 0:00:02]} 3. Nf3 {[%emt 0:00:45]} Bb7 {[%emt 0:00:03]} 4. e3 {[%emt 0:01:14]} e6 {[%emt 0:00:15]} 5. Be2 {[%emt 0:00:43]} Bb4+ {[%emt 0:00:06]} 6. Nbd2 {[%emt 0:00:09]} O-O {[%emt 0:01:06]} 7. O-O {[%emt 0:00:06]} a5 {[%emt 0:00:19]} 8. a3 {[%emt 0:00:24]} Be7 {[%emt 0:00:53]} 9. Qc2 {[%emt 0:00:21]} d5 {[%emt 0:00:13]} 10. b3 {[%emt 0:00:54]} Nbd7 {[%emt 0:00:25]} 11. Bb2 {[%emt 0:00:06]} Rc8 {[%emt 0:00:04]} 12. Rac1 {[%emt 0:00:32]} c5 {[%emt 0:00:02]} 13. Qb1 {[%emt 0:00:23]} Ne4 {[%emt 0:00:27]} 14. Rfd1 {[%emt 0:00:57]} Ndf6 {[%emt 0:00:45]} 15. Qa1 {[%emt 0:00:52]} Nxd2 {[%emt 0:01:06]} 16. Nxd2 {[%emt 0:00:09]} dxc4 {[%emt 0:03:31]} 17. dxc5 {[%emt 0:01:31]} bxc5 {[%emt 0:02:58]} 18. Nxc4 {[%emt 0:00:10]} Qc7 {[%emt 0:00:02]} 19. Be5 {[%emt 0:00:05]} Qc6 {[%emt 0:00:06]} 20. Bf3 {[%emt 0:00:14]} Qa6 {[%emt 0:00:02]} 21. Bxb7 {[%emt 0:00:13]} Qxb7 {[%emt 0:00:02]} 22. Nxa5 {[%emt 0:00:34]} Qb5 {[%emt 0:00:37]} 23. Nc4 {[%emt 0:07:47]} Qxb3 {[%emt 0:00:07]} 24. Rc3 {[%emt 0:00:38]} Qb7 {[%emt 0:02:08]} 25. Nd6 {[%emt 0:02:12]} Bxd6 {[%emt 0:00:19]} 26. Bxd6 {[%emt 0:00:09]} Ne4 {[%emt 0:01:31]} 27. Bxf8 {[%emt 0:01:16]} Nxc3 {[%emt 0:00:05]} 28. Qxc3 {[%emt 0:00:39]} Kxf8 {[%emt 0:00:09]} 29. h3 {[%emt 0:00:10]} c4 {[%emt 0:02:01]} 30. Rd4 {[%emt 0:00:33]} Qb3 {[%emt 0:00:16]} 31. Qxb3 {[%emt 0:00:35]} cxb3 {[%emt 0:00:04]} 32. Rb4 {[%emt 0:00:03]} Rc1+ {[%emt 0:00:06]} 33. Kh2 {[%emt 0:00:11]} Rb1 {[%emt 0:00:56]} 34. a4 {[%emt 0:00:06]} b2 {[%emt 0:00:02]} 35. a5 {[%emt 0:00:05]} Ra1 {[%emt 0:00:04]} 36. Rxb2 {[%emt 0:00:03]} Rxa5 {[%emt 0:00:02]} 37. Rb7 {[%emt 0:00:04]} h5 {[%emt 0:00:05]} 38. Kg3 {[%emt 0:00:08]} Rg5+ {[%emt 0:00:06]} 39. Kf3 {[%emt 0:00:11]} Rf5+ {[%emt 0:00:03]} 40. Kg3 {[%emt 0:00:04]} h4+ {[%emt 0:00:06]} 41. Kxh4 {[%emt 0:00:17]} Rxf2 {[%emt 0:00:02]} 42. Kg3 {[%emt 0:00:03]} Rf1 {[%emt 0:00:11]} 43. Ra7 {[%emt 0:00:17]} g6 {[%emt 0:00:07]} 44. Rb7 {[%emt 0:00:53]} Kg7 {[%emt 0:00:04]} 45. Rb4 {[%emt 0:00:19]} Kf8 {[%emt 0:01:25]} 46. Rb7 {[%emt 0:00:04]} Kg7 {[%emt 0:00:12]} 47. Rb4 {[%emt 0:00:04]} e5 {[%emt 0:00:58]} 48. Rb7 {[%emt 0:00:41]} Kh6 {[%emt 0:00:13]} 49. Re7 {[%emt 0:00:06]} f6 {[%emt 0:00:11]} 50. Re8 {[%emt 0:01:24]} Kg5 {[%emt 0:00:13]} 51. Rb8 {[%emt 0:01:38]} Kf5 {[%emt 0:00:10]} 52. Rb4 {[%emt 0:00:05]} g5 {[%emt 0:00:22]} 53. h4 {[%emt 0:00:33]} gxh4+ {[%emt 0:00:18]} 54. Rxh4 {[%emt 0:00:10]} Ke6 {[%emt 0:01:15]} 55. e4 {[%emt 0:00:40]} Kd6 {[%emt 0:00:10]} 56. Rh8 $11 {[%emt 0:01:23]} Rf4 {[%emt 0:00:29]} 57. Rh4 {[%emt 0:00:04]} Rf1 {[%emt 0:01:09]} 58. Rh8 {[%emt 0:00:03]} Kc5 {[%emt 0:01:23]} 59. Ra8 {[%emt 0:00:29]} Rf4 {[%emt 0:00:19]} 60. Ra4 {[%emt 0:00:13]} f5 {[%emt 0:00:09]} 61. Ra5+ {[%emt 0:00:10]} Kd4 {[%emt 0:00:02]} 62. exf5 {[%emt 0:00:03]} Rxf5 {[%emt 0:00:05]} 63. Kg4 {[%emt 0:00:03]} Rf1 {[%emt 0:00:07]} 64. Ra4+ {[%emt 0:00:19]} Ke3 {[%emt 0:00:13]} 65. Ra3+ {[%emt 0:00:03]} Kd4 {[%emt 0:00:22]} 66. Ra4+ {[%emt 0:00:02]} Kd5 {[%emt 0:00:19]} 67. Ra5+ {[%emt 0:00:03]} Ke6 {[%emt 0:00:08]} 68. Ra6+ {[%emt 0:00:02]} Ke7 {[%emt 0:01:00]} 69. Ra7+ {[%emt 0:00:06]} Kf6 {[%emt 0:00:13]} 70. Ra6+ {[%emt 0:00:02]} Kf7 {[%emt 0:00:02]} 71. Ra7+ {[%emt 0:00:02]} Ke6 {[%emt 0:01:35]} 72. Ra6+ {[%emt 0:00:04]} Kd5 {[%emt 0:00:20]} 73. Ra5+ {[%emt 0:00:02]} Kd4 {[%emt 0:00:02]} 74. Ra4+ {[%emt 0:00:02]} 1/2-1/2

[Event "African Online-ch Open 2021"]
[Site "Online"]
[Date "2021.02.01"]
[Round "2.17"]
[White "Fernandes, Avelino"]
[Black "Vermaak, Ashley Christopher"]
[Result "1/2-1/2"]
[ECO "B13"]
[WhiteElo "1887"]
[BlackElo "1751"]
[Annotator "NA RC"]
[PlyCount "82"]
[EventDate "2021.02.01"]
[EventType "swiss"]
[EventCountry "NET"]
[SourceTitle "playchess.com"]
[Source "ChessBase"]
[SourceQuality "1"]
[TimeControl "1500+10"]

1. f4 {[%emt 0:00:00]} d5 {[%emt 0:00:13]} 2. d4 {[%emt 0:00:06]} c5 {[%emt 0:00:15]} 3. e3 {[%emt 0:00:03]} Nc6 {[%emt 0:00:09]} 4. c3 {[%emt 0:00:03]} Nf6 {[%emt 0:00:06]} 5. Nf3 {[%emt 0:00:02]} cxd4 {[%emt 0:00:23]} 6. exd4 {[%emt 0:00:21]} Bg4 {[%emt 0:01:01]} 7. Bd3 {[%emt 0:00:05]} Bxf3 {[%emt 0:02:11]} 8. Qxf3 {[%emt 0:00:05]} e6 {[%emt 0:00:43]} 9. Nd2 {[%emt 0:00:09]} Bd6 {[%emt 0:00:31]} 10. O-O {[%emt 0:00:08]} Qc7 {[%emt 0:00:32]} 11. Qe3 {[%emt 0:01:23]} Qe7 {[%emt 0:05:22]} 12. Nf3 {[%emt 0:00:05]} Ng4 {[%emt 0:00:06]} 13. Qe2 {[%emt 0:00:07]} O-O-O {[%emt 0:03:21]} 14. b4 {[%emt 0:00:16]} Kb8 {[%emt 0:00:49]} 15. a4 {[%emt 0:00:05]} Rc8 {[%emt 0:01:14]} 16. Bd2 {[%emt 0:00:14]} f5 {[%emt 0:00:10]} 17. a5 {[%emt 0:00:12]} Nf6 {[%emt 0:00:14]} 18. b5 {[%emt 0:00:12]} Nd8 {[%emt 0:00:05]} 19. Ne5 {[%emt 0:00:05]} Ne4 {[%emt 0:00:37]} 20. Rfc1 {[%emt 0:00:15]} Bxe5 {[%emt 0:00:39]} 21. fxe5 {[%emt 0:00:11]} Nxd2 {[%emt 0:00:53]} 22. Qxd2 {[%emt 0:00:06]} g5 {[%emt 0:01:29]} 23. Ra4 {[%emt 0:00:42]} Nf7 {[%emt 0:01:33]} 24. c4 {[%emt 0:00:53]} dxc4 {[%emt 0:00:52]} 25. Raxc4 {[%emt 0:00:05]} Rxc4 {[%emt 0:00:08]} 26. Rxc4 {[%emt 0:00:06]} Rc8 {[%emt 0:00:33]} 27. Qc3 {[%emt 0:00:45]} Qd7 {[%emt 0:00:34]} 28. Rxc8+ {[%emt 0:03:26]} Qxc8 {[%emt 0:00:04]} 29. Qxc8+ {[%emt 0:00:04]} Kxc8 {[%emt 0:00:03]} 30. g4 {[%emt 0:00:02]} Nh6 {[%emt 0:01:29]} 31. gxf5 {[%emt 0:00:04]} Nxf5 {[%emt 0:01:59]} 32. Bxf5 {[%emt 0:00:13]} exf5 {[%emt 0:00:03]} 33. d5 {[%emt 0:00:01]} g4 {[%emt 0:00:23]} 34. b6 {[%emt 0:00:57]} axb6 {[%emt 0:00:09]} 35. axb6 {[%emt 0:00:06]} Kd7 {[%emt 0:00:09]} 36. Kf2 {[%emt 0:00:07]} f4 {[%emt 0:00:04]} 37. Ke2 {[%emt 0:02:02]} h5 {[%emt 0:00:22]} 38. Kf2 {[%emt 0:03:01]} h4 {[%emt 0:00:47]} 39. e6+ {[%emt 0:00:28]} Kd6 {[%emt 0:00:07]} 40. Kg2 {[%emt 0:00:04]} Ke7 {[%emt 0:00:11]} 41. Kf2 {[%emt 0:00:27]} Kd6 {[%emt 0:00:05]} 1/2-1/2

[Event "African Online-ch Open 2021"]
[Site "Online"]
[Date "2021.02.01"]
[Round "2.21"]
[White "Kamara, Ansumana"]
[Black "Monaheng Motlomelo"]
[Result "1-0"]
[ECO "C87"]
[WhiteElo "1899"]
[BlackElo "1538"]
[Annotator "NA RC"]
[PlyCount "49"]
[EventDate "2021.02.01"]
[EventType "swiss"]
[EventCountry "NET"]
[SourceTitle "playchess.com"]
[Source "ChessBase"]
[SourceQuality "1"]
[TimeControl "1500+10"]

1. e4 {[%emt 0:00:00]} e5 {[%emt 0:00:06]} 2. Nf3 {[%emt 0:00:06]} Nc6 {[%emt 0:00:04]} 3. Bb5 {[%emt 0:00:05]} d6 {[%emt 0:00:04]} 4. O-O {[%emt 0:00:05]} Bd7 {[%emt 0:00:04]} 5. c3 {[%emt 0:00:04]} Nf6 {[%emt 0:00:04]} 6. Re1 {[%emt 0:00:04]} Be7 {[%emt 0:00:04]} 7. d4 {[%emt 0:00:09]} exd4 {[%emt 0:00:07]} 8. cxd4 {[%emt 0:00:04]} O-O {[%emt 0:00:03]} 9. h3 {[%emt 0:00:11]} a6 {[%emt 0:00:07]} 10. Ba4 {[%emt 0:00:05]} h6 {[%emt 0:00:57]} 11. Nbd2 {[%emt 0:00:09]} Rb8 {[%emt 0:02:49]} 12. Nf1 {[%emt 0:00:11]} Re8 {[%emt 0:00:32]} 13. Ng3 {[%emt 0:00:18]} Bf8 {[%emt 0:00:06]} 14. a3 {[%emt 0:00:18]} Ne7 {[%emt 0:00:14]} 15. Bc2 {[%emt 0:00:10]} Ng6 {[%emt 0:00:45]} 16. Qd3 {[%emt 0:00:46]} Bb5 {[%emt 0:00:12]} 17. Qd1 {[%emt 0:00:19]} Bd7 {[%emt 0:04:34]} 18. Be3 {[%emt 0:00:15]} c5 {[%emt 0:00:19]} 19. dxc5 {[%emt 0:02:38]} dxc5 {[%emt 0:00:08]} 20. Qd3 {[%emt 0:00:05]} Bb5 {[%emt 0:00:09]} 21. Qb3 {[%emt 0:00:06]} Qc7 {[%emt 0:01:58]} 22. Rad1 {[%emt 0:00:50]} Bc6 {[%emt 0:00:22]} 23. Bc1 {[%emt 0:00:41]} b5 {[%emt 0:00:35]} 24. Qc3 {[%emt 0:03:13]} Nd7 {[%emt 0:03:29]} 25. b3 {[%emt 0:01:44]} 1-0

[Event "African Online-ch Open 2021"]
[Site "Online"]
[Date "2021.02.01"]
[Round "3.18"]
[White "Hamzaoui, Khalil"]
[Black "Fernandes, Avelino"]
[Result "1-0"]
[ECO "A80"]
[WhiteElo "1883"]
[BlackElo "1887"]
[Annotator "NA RC"]
[PlyCount "113"]
[EventDate "2021.02.01"]
[EventType "swiss"]
[EventCountry "NET"]
[SourceTitle "playchess.com"]
[Source "ChessBase"]
[SourceQuality "1"]
[TimeControl "1500+10"]

1. d4 {[%emt 0:00:00]} f5 {[%emt 0:00:06]} 2. Nc3 {[%emt 0:00:30]} e6 {[%emt 0:00:27]} 3. e4 {[%emt 0:00:07]} fxe4 {[%emt 0:00:10]} 4. Nxe4 {[%emt 0:00:05]} Nf6 {[%emt 0:02:27]} 5. Nxf6+ {[%emt 0:00:10]} Qxf6 {[%emt 0:00:04]} 6. Nf3 {[%emt 0:00:02]} Nc6 {[%emt 0:00:18]} 7. Bg5 {[%emt 0:00:41]} Qf7 {[%emt 0:00:15]} 8. Qd2 {[%emt 0:00:17]} Bd6 {[%emt 0:00:12]} 9. O-O-O {[%emt 0:00:18]} O-O {[%emt 0:00:25]} 10. Kb1 {[%emt 0:00:12]} h6 {[%emt 0:00:13]} 11. Be3 {[%emt 0:00:07]} Nb4 {[%emt 0:00:20]} 12. Ne5 {[%emt 0:04:22]} Qf6 {[%emt 0:04:12]} 13. g4 {[%emt 0:00:52]} Nd5 {[%emt 0:02:05]} 14. g5 {[%emt 0:00:02]} hxg5 {[%emt 0:00:05]} 15. Bxg5 {[%emt 0:00:04]} Qxf2 {[%emt 0:00:02]} 16. Be2 {[%emt 0:00:51]} Nf4 {[%emt 0:00:09] [#]} 17. Rde1 $1 {[%emt 0:05:35]} c5 {[%emt 0:00:27]} 18. Rhf1 {[%emt 0:00:06]} Qxd4 {[%emt 0:00:05]} 19. Qxd4 {[%emt 0:02:32]} cxd4 {[%emt 0:00:05]} 20. Bxf4 {[%emt 0:00:10]} Rxf4 {[%emt 0:00:07]} 21. Rxf4 {[%emt 0:01:17]} Bxe5 {[%emt 0:00:04]} 22. Rg4 {[%emt 0:00:07]} Bf6 {[%emt 0:00:09]} 23. h4 {[%emt 0:00:10]} (23. Rf1 $5 {[%cal Rf1f6]} Kf7 24. Rxd4 $14) 23... d6 {[%emt 0:00:12]} 24. h5 {[%emt 0:00:22]} e5 {[%emt 0:00:03]} 25. Bc4+ {[%emt 0:00:06]} Kh8 {[%emt 0:00:08]} 26. Rg2 {[%emt 0:00:20]} Bd7 {[%emt 0:00:05]} 27. h6 {[%emt 0:00:16]} g5 {[%emt 0:00:20]} 28. Rf2 {[%emt 0:00:20]} Be7 {[%emt 0:00:25]} 29. Rf7 {[%emt 0:00:17]} Re8 {[%emt 0:00:03]} 30. Bd3 {[%emt 0:00:46]} Be6 {[%emt 0:00:10]} 31. Rh7+ {[%emt 0:00:03]} Kg8 {[%emt 0:00:05]} 32. Rg7+ {[%emt 0:00:01]} Kh8 {[%emt 0:00:03]} 33. Bg6 {[%emt 0:00:03]} Bf6 {[%emt 0:00:19]} 34. Bxe8 {[%emt 0:00:07]} Bxg7 {[%emt 0:00:02]} 35. hxg7+ {[%emt 0:00:02]} Kxg7 {[%emt 0:00:02]} 36. Kc1 {[%emt 0:01:04]} Bf5 {[%emt 0:00:12]} 37. Rf1 {[%emt 0:00:28]} Bh3 {[%emt 0:00:09]} 38. Rf7+ {[%emt 0:00:04]} Kh6 {[%emt 0:00:02]} 39. Rf6+ {[%emt 0:00:15]} Kh7 {[%emt 0:00:04]} 40. Rxd6 {[%emt 0:00:18]} Bg2 {[%emt 0:00:20]} 41. Rg6 {[%emt 0:00:46]} Bc6 {[%emt 0:00:05]} 42. Rxg5 {[%emt 0:00:27]} Bxe8 {[%emt 0:00:04]} 43. Rxe5 {[%emt 0:00:01]} Bc6 {[%emt 0:00:01]} 44. Kd2 {[%emt 0:00:08]} Kg6 {[%emt 0:00:02]} 45. Kd3 {[%emt 0:00:02]} Kf6 {[%emt 0:00:05]} 46. Kxd4 {[%emt 0:00:01]} a6 {[%emt 0:00:01]} 47. Re1 {[%emt 0:00:23]} Kf5 {[%emt 0:00:06]} 48. c3 {[%emt 0:00:10]} a5 {[%emt 0:00:09]} 49. a3 {[%emt 0:00:04]} a4 {[%emt 0:00:02]} 50. Kc5 {[%emt 0:00:02]} Kf6 {[%emt 0:00:06]} 51. Kb6 {[%emt 0:00:28]} Kf5 {[%emt 0:00:04]} 52. c4 {[%emt 0:00:04]} Kf6 {[%emt 0:00:03]} 53. c5 {[%emt 0:00:01]} Kf5 {[%emt 0:00:03]} 54. Re2 {[%emt 0:00:16]} Kf6 {[%emt 0:00:04]} 55. Re3 {[%emt 0:00:06]} Kf5 {[%emt 0:00:03]} 56. Re7 {[%emt 0:00:02]} Kf6 {[%emt 0:00:02]} 57. Rxb7 {[%emt 0:00:02]} 1-0

[Event "African Online-ch Open 2021"]
[Site "Online"]
[Date "2021.02.01"]
[Round "3.19"]
[White "Mosutha, Thuso"]
[Black "Strovsky, Mikhail"]
[Result "1-0"]
[ECO "C42"]
[WhiteElo "2036"]
[BlackElo "2164"]
[Annotator "RC"]
[PlyCount "91"]
[EventDate "2021.02.01"]
[EventType "swiss"]
[EventCountry "NET"]
[SourceTitle "playchess.com"]
[Source "ChessBase"]
[SourceQuality "1"]
[TimeControl "1500+10"]

1. e4 {[%emt 0:00:00]} e5 {[%emt 0:00:04]} 2. Nf3 {[%emt 0:00:08]} Nf6 {[%emt 0:00:02]} 3. Nc3 {[%emt 0:00:31]} Bb4 {[%emt 0:00:04]} 4. Nxe5 {[%emt 0:00:17]} O-O {[%emt 0:00:05]} 5. Nf3 {[%emt 0:01:01]} Re8 {[%emt 0:00:27]} 6. e5 {[%emt 0:00:29]} d6 {[%emt 0:00:22]} 7. Bb5 {[%emt 0:01:29]} c6 {[%emt 0:00:29]} 8. Bc4 {[%emt 0:01:59]} dxe5 {[%emt 0:01:26]} 9. O-O {[%emt 0:00:15]} h6 {[%emt 0:00:47]} 10. a3 {[%emt 0:00:18]} Ba5 {[%emt 0:01:09]} 11. h3 {[%emt 0:00:18]} Bc7 {[%emt 0:00:49]} 12. Re1 {[%emt 0:00:12]} Nbd7 {[%emt 0:00:30]} 13. d3 {[%emt 0:00:06]} Nb6 {[%emt 0:01:23]} 14. Bb3 {[%emt 0:01:46]} Bf5 {[%emt 0:02:20]} 15. Nh4 {[%emt 0:03:35]} Bh7 {[%emt 0:04:43]} 16. Qf3 {[%emt 0:00:15]} Nbd5 {[%emt 0:01:03]} 17. Nf5 {[%emt 0:07:58]} Bxf5 {[%emt 0:04:21]} 18. Qxf5 {[%emt 0:00:04]} Nxc3 {[%emt 0:00:21]} 19. bxc3 {[%emt 0:00:05]} Qd7 {[%emt 0:01:09]} 20. Qxd7 {[%emt 0:00:55]} Nxd7 {[%emt 0:00:06]} 21. Be3 {[%emt 0:00:05]} Nf6 {[%emt 0:00:45]} 22. Reb1 {[%emt 0:00:15]} b6 {[%emt 0:01:10]} 23. Ba4 {[%emt 0:01:47]} b5 {[%emt 0:01:57]} 24. Bb3 {[%emt 0:00:04]} a6 {[%emt 0:00:28]} 25. c4 {[%emt 0:00:04]} Rab8 {[%emt 0:01:20]} 26. cxb5 {[%emt 0:00:05]} cxb5 {[%emt 0:00:26]} 27. a4 {[%emt 0:00:17]} b4 {[%emt 0:00:18]} 28. a5 {[%emt 0:00:10]} Red8 {[%emt 0:00:23]} 29. Bc4 {[%emt 0:00:05]} Rd6 {[%emt 0:00:34]} 30. Bc5 {[%emt 0:00:15]} Rc6 {[%emt 0:00:09]} 31. Bxb4 {[%emt 0:00:11]} Rc8 {[%emt 0:00:12]} 32. Bd2 {[%emt 0:00:21]} e4 {[%emt 0:00:07]} 33. Rb7 {[%emt 0:00:21]} exd3 {[%emt 0:00:08]} 34. cxd3 {[%emt 0:00:04]} Ne8 {[%emt 0:00:08]} 35. Bb4 {[%emt 0:00:19]} Rb8 {[%emt 0:00:13]} 36. Rxb8 {[%emt 0:00:16]} Bxb8 {[%emt 0:00:02]} 37. Re1 {[%emt 0:00:03]} Nc7 {[%emt 0:00:46]} 38. g3 {[%emt 0:00:14]} Ne6 {[%emt 0:00:10]} 39. Kg2 {[%emt 0:00:26]} Kh7 {[%emt 0:00:11]} 40. Bd5 {[%emt 0:00:29]} Rc2 {[%emt 0:00:07]} 41. d4 {[%emt 0:01:42]} Rb2 {[%emt 0:00:17]} 42. Bc3 {[%emt 0:00:06]} Rb5 {[%emt 0:00:08]} 43. Bc4 {[%emt 0:00:13]} Rg5 {[%emt 0:00:10]} 44. Bxa6 {[%emt 0:00:17]} Nf4+ {[%emt 0:00:05]} 45. Kh2 {[%emt 0:00:06]} Nd3 {[%emt 0:00:03]} 46. Bxd3+ {[%emt 0:00:05]} 1-0

[Event "African Online-ch Open 2021"]
[Site "Online"]
[Date "2021.02.01"]
[Round "3.20"]
[White "Vermaak, Ashley Christopher"]
[Black "Ebersohn, Raymond Gerhard"]
[Result "1-0"]
[ECO "D97"]
[WhiteElo "1751"]
[BlackElo "1726"]
[Annotator "NA RC"]
[PlyCount "49"]
[EventDate "2021.02.01"]
[EventType "swiss"]
[EventCountry "NET"]
[SourceTitle "playchess.com"]
[Source "ChessBase"]
[SourceQuality "1"]
[TimeControl "1500+10"]

1. d4 {[%emt 0:00:00]} Nf6 {[%emt 0:00:10]} 2. c4 {[%emt 0:00:05]} g6 {[%emt 0:00:20]} 3. Nc3 {[%emt 0:00:06]} d5 {[%emt 0:00:08]} 4. Nf3 {[%emt 0:00:04]} Bg7 {[%emt 0:00:04]} 5. Qb3 {[%emt 0:00:04]} dxc4 {[%emt 0:00:03]} 6. Qxc4 {[%emt 0:00:02]} O-O {[%emt 0:00:01]} 7. e4 {[%emt 0:00:02]} a6 {[%emt 0:00:02]} 8. Be2 {[%emt 0:02:15]} b5 {[%emt 0:00:09]} 9. Qb3 {[%emt 0:00:37]} Bb7 {[%emt 0:00:10]} 10. e5 {[%emt 0:00:54]} Nd5 {[%emt 0:00:11]} 11. O-O {[%emt 0:00:09]} e6 {[%emt 0:00:43]} 12. Bg5 {[%emt 0:01:16]} Qd7 {[%emt 0:00:05]} 13. a4 {[%emt 0:00:18]} Nxc3 {[%emt 0:00:10]} 14. bxc3 {[%emt 0:01:30]} Bd5 {[%emt 0:00:04]} 15. c4 {[%emt 0:01:32]} bxc4 {[%emt 0:01:03]} 16. Bxc4 {[%emt 0:00:04]} Bxf3 {[%emt 0:01:43]} 17. Qxf3 {[%emt 0:00:06]} Nc6 {[%emt 0:00:15]} 18. Bf6 {[%emt 0:02:04]} Nxd4 {[%emt 0:03:44]} 19. Qd3 {[%emt 0:00:05]} a5 {[%emt 0:00:39]} 20. Rfd1 {[%emt 0:04:23]} c5 {[%emt 0:00:40]} 21. Bb5 {[%emt 0:01:22]} Qc7 {[%emt 0:00:06]} 22. Rac1 {[%emt 0:00:16]} Nxb5 {[%emt 0:00:10]} 23. Qxb5 {[%emt 0:00:13]} Rfc8 {[%emt 0:00:06]} 24. Rd7 {[%emt 0:01:39]} Qc6 {[%emt 0:02:15]} 25. Rd8+ {[%emt 0:02:51]} 1-0